[Event "CAT-chT Honor Division 2019"]
[Site "Catalonia"]
[Date "2019.02.16"]
[Round "5.5"]
[White "Lorenzo De La Riva, Lazaro"]
[Black "Pijuan Herranz, Manuel"]
[Result "0-1"]
[ECO "C50"]
[WhiteElo "2397"]
[BlackElo "2206"]
[Annotator "NA"]
[PlyCount "104"]
[EventDate "2019.01.16"]
[EventType "team-tourn"]
[EventCountry "ESP"]
[SourceTitle "playchess.com"]
[Source "ChessBase"]
[SourceQuality "1"]
[WhiteTeam "Colon Sabadell Chessy"]
[BlackTeam "Figueres"]
[TimeControl "5400+30"]

1. e4 {[%emt 0:00:12]} e5 {[%emt 0:00:00]} 2. Nf3 {[%emt 0:00:28]} Nc6 {[%emt 0:00:00]} 3. Bc4 {[%emt 0:01:03]} Bc5 {[%emt 0:00:00]} 4. d3 {[%emt 0:00:59]} Nf6 {[%emt 0:00:22]} 5. Bg5 {[%emt 0:00:20]} h6 {[%emt 0:00:46]} 6. Bh4 {[%emt 0:00:03]} d6 {[%emt 0:02:05]} 7. c3 {[%emt 0:05:18]} g5 {[%emt 0:07:40]} 8. Bg3 {[%emt 0:00:02]} Bg4 {[%emt 0:09:03]} 9. Nbd2 {[%emt 0:10:59]} Qd7 {[%emt 0:07:54]} 10. a4 {[%emt 0:10:45]} a5 {[%emt 0:05:54]} 11. Bb5 {[%emt 0:01:25]} Qe7 {[%emt 0:14:40]} 12. Nc4 {[%emt 0:09:45]} Nh5 {[%emt 0:06:19]} 13. Ne3 {[%emt 0:05:24]} Bxe3 {[%emt 0:01:42]} 14. fxe3 {[%emt 0:00:03]} Nxg3 {[%emt 0:18:38]} 15. hxg3 {[%emt 0:00:02]} O-O-O {[%emt 0:00:48]} 16. Bxc6 {[%emt 0:05:17]} bxc6 {[%emt 0:00:09]} 17. O-O {[%emt 0:12:21]} h5 {[%emt 0:11:21]} 18. Qe1 {[%emt 0:00:07]} f5 {[%emt 0:00:34]} 19. exf5 {[%emt 0:00:42]} Bxf5 {[%emt 0:00:08]} 20. e4 {[%emt 0:00:23]} Be6 {[%emt 0:00:17]} 21. b4 {[%emt 0:05:41]} h4 {[%emt 0:02:13]} 22. g4 {[%emt 0:00:25]} Bxg4 {[%emt 0:00:30]} 23. Nh2 {[%emt 0:01:39]} Be6 {[%emt 0:01:12]} 24. b5 {[%emt 0:00:25]} g4 {[%emt 0:02:24]} 25. bxc6 {[%emt 0:00:10]} d5 {[%emt 0:00:11]} 26. d4 {[%emt 0:02:27]} exd4 {[%emt 0:01:23]} 27. Qb1 {[%emt 0:04:03]} Rd6 {[%emt 0:02:01]} 28. exd5 {[%emt 0:05:22]} Rxd5 {[%emt 0:00:38]} 29. Qb7+ {[%emt 0:00:49]} Kd8 {[%emt 0:00:13]} 30. Rae1 {[%emt 0:00:03]} Qd6 {[%emt 0:00:37]} 31. Rf7 {[%emt 0:01:25]} Bc8 {[%emt 0:02:49]} 32. Qa7 {[%emt 0:13:31]} Qxc6 {[%emt 0:00:49]} 33. Ree7 {[%emt 0:01:48]} Qb6 {[%emt 0:01:01]} 34. Rxc7 {[%emt 0:02:31]} Qxa7 {[%emt 0:00:08]} 35. Rxa7 {[%emt 0:00:02]} d3 {[%emt 0:00:19]} 36. Rf1 {[%emt 0:00:14]} Re8 {[%emt 0:02:14]} 37. Rd1 {[%emt 0:00:38]} Re2 {[%emt 0:00:42]} 38. Rf7 {[%emt 0:01:19]} Bd7 {[%emt 0:00:31]} 39. Rf4 {[%emt 0:00:16]} h3 {[%emt 0:00:21]} 40. gxh3 {[%emt 0:00:27]} gxh3 {[%emt 0:00:10]} 41. Nf3 {[%emt 0:00:29]} Rg2+ {[%emt 0:01:01]} 42. Kh1 {[%emt 0:00:27]} Bg4 {[%emt 0:00:33]} 43. c4 {[%emt 0:00:34]} Rd7 {[%emt 0:00:18]} 44. Rxg4 {[%emt 0:00:32]} Rxg4 {[%emt 0:00:14]} 45. Ne5 {[%emt 0:00:02]} Rgd4 {[%emt 0:00:16]} 46. Nxd7 Kxd7 {[%emt 0:00:02]} 47. Kh2 {[%emt 0:01:27]} Kc6 {[%emt 0:00:35]} 48. Kxh3 {[%emt 0:00:14]} Kc5 {[%emt 0:00:08]} 49. Kg3 {[%emt 0:00:13]} Kxc4 {[%emt 0:00:04]} 50. Kf3 {[%emt 0:00:18]} Kc3 {[%emt 0:02:04]} 51. Ra1 {[%emt 0:00:31]} d2 {[%emt 0:00:48]} 52. Ke2 {[%emt 0:00:05]} Kb2 0-1

[Event "CAT-chT Honor Division 2019"]
[Site "Catalonia"]
[Date "2019.02.16"]
[Round "5.5"]
[White "Gutierrez Clares, Joaquim"]
[Black "Sanchez Ibern, Marc"]
[Result "1-0"]
[ECO "A50"]
[WhiteElo "2250"]
[BlackElo "2325"]
[Annotator "NA"]
[PlyCount "83"]
[EventDate "2019.01.16"]
[EventType "team-tourn"]
[EventCountry "ESP"]
[SourceTitle "playchess.com"]
[Source "ChessBase"]
[SourceQuality "1"]
[WhiteTeam "Sant Josep Badalona"]
[BlackTeam "Barcelona"]
[TimeControl "5400+30"]

1. d4 Nf6 2. c4 b6 3. Nf3 Bb7 4. Nc3 g6 5. g3 Bg7 6. Bg2 O-O 7. O-O Ne4 8. Qc2 Nxc3 9. Qxc3 c5 10. Be3 Nc6 11. Rfd1 Rc8 12. Qa3 Na5 13. b3 Qc7 14. Rac1 Rfd8 15. d5 d6 16. Bd2 Rb8 17. e4 Bc8 18. Bc3 Bxc3 19. Rxc3 Bg4 20. Re1 a6 21. Qc1 b5 22. Qh6 Bxf3 23. Rxf3 Rf8 24. g4 f6 25. cxb5 axb5 26. Bh3 g5 27. Rf5 Kh8 28. f4 gxf4 29. Rh5 Rf7 30. g5 Qd8 31. Be6 Qf8 32. Bxf7 Qxf7 33. g6 Qg7 34. Qxh7+ Qxh7 35. Rxh7+ Kg8 36. Rxe7 b4 37. h4 c4 38. Ra7 Nb7 39. bxc4 Nc5 40. h5 f3 41. Re3 Re8 42. h6 1-0

[Event "CAT-chT Honor Division 2019"]
[Site "Catalonia"]
[Date "2019.02.16"]
[Round "5.6"]
[White "Fantinel, Thibault"]
[Black "Fernandez Madrid, Carlos"]
[Result "1/2-1/2"]
[ECO "D34"]
[WhiteElo "2381"]
[BlackElo "2042"]
[Annotator "NA"]
[PlyCount "58"]
[EventDate "2019.01.16"]
[EventType "team-tourn"]
[EventCountry "ESP"]
[SourceTitle "playchess.com"]
[Source "ChessBase"]
[SourceQuality "1"]
[WhiteTeam "Barcelona"]
[BlackTeam "Sant Josep Badalona"]
[TimeControl "5400+30"]

1. c4 Nf6 2. g3 e6 3. Bg2 Be7 4. Nf3 O-O 5. O-O c5 6. d4 cxd4 7. Nxd4 Nc6 8. Nc3 d5 9. cxd5 exd5 10. b3 Bg4 11. h3 Bd7 12. Bb2 Rc8 13. e3 Qa5 14. a3 Qb6 15. Na4 Qd8 16. Rc1 Ne4 17. Ne2 Bf5 18. g4 Bg6 19. Nf4 b5 20. Nxg6 hxg6 21. Bxe4 dxe4 22. Nc5 Qxd1 23. Rfxd1 Na5 24. Nxe4 Nxb3 25. Rxc8 Rxc8 26. Rd7 Bh4 27. Rxa7 Rc2 28. Be5 Nd2 29. Nxd2 Rxd2 1/2-1/2

[Event "CAT-chT Honor Division 2019"]
[Site "Catalonia"]
[Date "2019.02.16"]
[Round "5.6"]
[White "Pi Pares, Albert"]
[Black "Bofill Mas, Alejandro"]
[Result "0-1"]
[ECO "B52"]
[WhiteElo "2153"]
[BlackElo "2324"]
[Annotator "NA"]
[PlyCount "98"]
[EventDate "2019.01.16"]
[EventType "team-tourn"]
[EventCountry "ESP"]
[SourceTitle "playchess.com"]
[Source "ChessBase"]
[SourceQuality "1"]
[WhiteTeam "Figueres"]
[BlackTeam "Colon Sabadell Chessy"]
[TimeControl "5400+30"]

1. e4 {[%emt 0:00:00]} c5 {[%emt 0:00:00]} 2. Nf3 {[%emt 0:00:00]} d6 {[%emt 0:00:00]} 3. Bb5+ {[%emt 0:00:19]} Bd7 {[%emt 0:00:21]} 4. Bxd7+ {[%emt 0:00:33]} Qxd7 {[%emt 0:00:21]} 5. O-O {[%emt 0:00:28]} Nf6 {[%emt 0:00:30]} 6. Re1 Nc6 {[%emt 0:01:41]} 7. c3 {[%emt 0:02:29]} e6 {[%emt 0:01:49]} 8. d4 {[%emt 0:08:40]} cxd4 {[%emt 0:00:27]} 9. cxd4 {[%emt 0:00:12]} d5 {[%emt 0:00:15]} 10. e5 {[%emt 0:00:40]} Ne4 11. Re2 {[%emt 0:04:04]} Rc8 {[%emt 0:03:41]} 12. Be3 {[%emt 0:02:24]} Be7 {[%emt 0:04:16]} 13. Rc2 {[%emt 0:13:43]} O-O 14. Nbd2 Nxd2 {[%emt 0:19:30]} 15. Bxd2 {[%emt 0:03:14]} Bd8 {[%emt 0:05:02]} 16. Rac1 {[%emt 0:03:51]} Bb6 {[%emt 0:01:08]} 17. Bc3 a6 {[%emt 0:03:44]} 18. Qd3 {[%emt 0:10:43]} h6 {[%emt 0:02:59]} 19. Bd2 {[%emt 0:05:23]} Na7 {[%emt 0:04:54]} 20. Qb3 {[%emt 0:09:52]} Rxc2 {[%emt 0:02:29]} 21. Rxc2 {[%emt 0:04:10]} Qb5 {[%emt 0:03:11]} 22. Bb4 {[%emt 0:11:32]} Rc8 {[%emt 0:01:10]} 23. a4 {[%emt 0:10:37]} Qd7 24. h4 Rxc2 {[%emt 0:04:13]} 25. Qxc2 {[%emt 0:00:36]} Qc6 {[%emt 0:00:38]} 26. Bc5 {[%emt 0:04:37]} a5 {[%emt 0:06:15]} 27. Ne1 {[%emt 0:01:08]} Bxc5 {[%emt 0:01:46]} 28. dxc5 {[%emt 0:00:49]} b6 {[%emt 0:02:04]} 29. Nd3 {[%emt 0:01:05]} bxc5 {[%emt 0:03:48]} 30. Nxc5 d4 {[%emt 0:03:50]} 31. Qc1 {[%emt 0:02:42]} Qd5 {[%emt 0:02:27]} 32. Nd3 {[%emt 0:01:03]} Nc6 {[%emt 0:02:16]} 33. f4 {[%emt 0:00:14]} h5 34. Kf2 {[%emt 0:00:51]} Qe4 {[%emt 0:03:36]} 35. Nc5 {[%emt 0:00:33]} Qd5 {[%emt 0:01:16]} 36. Nd3 {[%emt 0:00:11]} g6 37. g3 {[%emt 0:00:40]} Kg7 {[%emt 0:02:27]} 38. Qc2 {[%emt 0:00:07]} Qh1 {[%emt 0:02:53]} 39. Qe2 {[%emt 0:01:08]} Qb1 40. Qd2 Qh1 {[%emt 0:03:02]} 41. Qc1 {[%emt 0:01:19]} Qh2+ {[%emt 0:00:33]} 42. Kf3 {[%emt 0:00:05]} Ne7 {[%emt 0:00:27]} 43. Nf2 {[%emt 0:00:01]} Nf5 {[%emt 0:01:35]} 44. Ne4 {[%emt 0:00:13]} Ne3 45. Nf2 Qg2+ {[%emt 0:02:12]} 46. Ke2 {[%emt 0:00:36]} Qxg3 47. Qc5 {[%emt 0:00:45]} Qxf4 {[%emt 0:01:37]} 48. Qxa5 {[%emt 0:00:08]} Nc4 {[%emt 0:00:40]} 49. Qc5 {[%emt 0:00:10]} Qe3+ 0-1

[Event "CAT-chT Honor Division 2019"]
[Site "Catalonia"]
[Date "2019.02.16"]
[Round "5.7"]
[White "Perpinya Rofes, Lluis Maria"]
[Black "Banos, Oscar"]
[Result "1-0"]
[ECO "C11"]
[WhiteElo "2317"]
[BlackElo "2172"]
[Annotator "NA"]
[PlyCount "69"]
[EventDate "2019.01.16"]
[EventType "team-tourn"]
[EventCountry "ESP"]
[SourceTitle "playchess.com"]
[Source "ChessBase"]
[SourceQuality "1"]
[WhiteTeam "Colon Sabadell Chessy"]
[BlackTeam "Figueres"]
[TimeControl "5400+30"]

1. e4 {[%emt 0:01:12]} e6 {[%emt 0:00:00]} 2. d4 {[%emt 0:00:08]} d5 {[%emt 0:00:00]} 3. Nc3 {[%emt 0:00:16]} Nf6 {[%emt 0:00:00]} 4. e5 {[%emt 0:00:53]} Nfd7 {[%emt 0:00:00]} 5. Nce2 {[%emt 0:01:22]} c5 {[%emt 0:02:10]} 6. c3 {[%emt 0:00:06]} Nc6 {[%emt 0:00:09]} 7. Nf3 {[%emt 0:00:39]} cxd4 {[%emt 0:01:10]} 8. cxd4 {[%emt 0:00:05]} f6 {[%emt 0:00:12]} 9. exf6 {[%emt 0:00:58]} Qxf6 {[%emt 0:00:53]} 10. Nc3 {[%emt 0:11:45]} Bd6 {[%emt 0:00:24]} 11. Bd3 {[%emt 0:03:11]} h6 {[%emt 0:00:51]} 12. O-O {[%emt 0:01:37]} O-O {[%emt 0:00:28]} 13. a3 {[%emt 0:02:28]} Rd8 {[%emt 0:01:35]} 14. Re1 {[%emt 0:10:31]} Nf8 {[%emt 0:00:46]} 15. b4 {[%emt 0:01:35]} Bd7 {[%emt 0:04:30]} 16. b5 {[%emt 0:08:31]} Ne7 {[%emt 0:04:57]} 17. Ne5 {[%emt 0:03:37]} Nf5 {[%emt 0:13:18]} 18. Qg4 {[%emt 0:06:53]} Rac8 {[%emt 0:04:48]} 19. Nxd5 {[%emt 0:06:52]} exd5 {[%emt 0:00:29]} 20. Nxd7 {[%emt 0:00:04]} Rxd7 {[%emt 0:01:03]} 21. Bxf5 {[%emt 0:03:09]} Rf7 {[%emt 0:01:02]} 22. Bf4 {[%emt 0:05:39]} Rd8 {[%emt 0:08:37]} 23. Bxd6 {[%emt 0:05:31]} Rxd6 {[%emt 0:00:15]} 24. Qg3 {[%emt 0:00:41]} Rb6 {[%emt 0:01:37]} 25. Bd3 {[%emt 0:03:35]} Qxd4 {[%emt 0:00:48]} 26. Rad1 {[%emt 0:00:56]} Qa4 {[%emt 0:07:23]} 27. Bb1 {[%emt 0:08:49]} Rxb5 {[%emt 0:08:45]} 28. Ba2 {[%emt 0:01:02]} Rd7 {[%emt 0:03:37]} 29. Qf3 {[%emt 0:01:42]} Qa5 {[%emt 0:15:22]} 30. Re8 {[%emt 0:02:00]} Rf7 {[%emt 0:00:29]} 31. Bxd5 {[%emt 0:02:59]} Rxd5 {[%emt 0:00:14]} 32. Qxd5 {[%emt 0:00:33]} Qxa3 {[%emt 0:00:15]} 33. Rde1 {[%emt 0:01:05]} Qb4 {[%emt 0:01:22]} 34. g3 {[%emt 0:02:27]} g6 {[%emt 0:01:32]} 35. R8e7 {[%emt 0:01:21]} 1-0

[Event "CAT-chT Honor Division 2019"]
[Site "Catalonia"]
[Date "2019.02.16"]
[Round "5.7"]
[White "Campins Machado, Francesc"]
[Black "Ternault, Mathieu"]
[Result "1-0"]
[ECO "A21"]
[WhiteElo "2109"]
[BlackElo "2308"]
[Annotator "NA"]
[PlyCount "97"]
[EventDate "2019.01.16"]
[EventType "team-tourn"]
[EventCountry "ESP"]
[SourceTitle "playchess.com"]
[Source "ChessBase"]
[SourceQuality "1"]
[WhiteTeam "Sant Josep Badalona"]
[BlackTeam "Barcelona"]
[TimeControl "5400+30"]

1. Nf3 Nc6 2. c4 d6 3. g3 e5 4. Nc3 f5 5. d3 Nf6 6. Bg2 Be7 7. O-O O-O 8. Rb1 Qe8 9. Nd5 Nxd5 10. cxd5 Nd8 11. b4 Qh5 12. Qc2 c6 13. dxc6 bxc6 14. b5 Bd7 15. Ba3 f4 16. bxc6 Bxc6 17. Qc3 Rc8 18. Rfc1 Qf7 19. Qa5 g5 20. Qa6 Rc7 21. Rb8 fxg3 22. hxg3 g4 23. Rxd8 Bxd8 24. Rxc6 gxf3 25. Bxf3 Qxa2 26. Bxd6 Qxa6 27. Rxa6 Rc1+ 28. Kg2 Bb6 29. Bxe5 h5 30. d4 h4 31. gxh4 Kf7 32. e3 Ke6 33. Bg3 Kd7 34. h5 Rc3 35. h6 Kc8 36. Be4 Rc7 37. h7 Rg7 38. Ra1 a5 39. Kh3 Rh8 40. f4 Kd7 41. Bf5+ Kc6 42. e4 Kb5 43. d5 a4 44. Rb1+ Ka6 45. Rb4 Ka5 46. Be1 Bf2 47. Rb8+ Bxe1 48. Rxh8 Ra7 49. Rc8 1-0

[Event "CAT-chT Honor Division 2019"]
[Site "Catalonia"]
[Date "2019.02.16"]
[Round "5.8"]
[White "Oms Fuentes, Lluis"]
[Black "Hapala, Elisabeth"]
[Result "1-0"]
[ECO "B22"]
[WhiteElo "2302"]
[BlackElo "2136"]
[Annotator "NA"]
[PlyCount "59"]
[EventDate "2019.01.16"]
[EventType "team-tourn"]
[EventCountry "ESP"]
[SourceTitle "playchess.com"]
[Source "ChessBase"]
[SourceQuality "1"]
[WhiteTeam "Barcelona"]
[BlackTeam "Sant Josep Badalona"]
[TimeControl "5400+30"]

1. e4 c5 2. c3 Nf6 3. e5 Nd5 4. d4 cxd4 5. Nf3 e6 6. cxd4 b6 7. Nc3 Nxc3 8. bxc3 Qc7 9. Bd2 Bb7 10. Bd3 d6 11. O-O Nd7 12. Re1 dxe5 13. Nxe5 Nxe5 14. Rxe5 Bd6 15. Bb5+ Bc6 16. Qf3 Rc8 17. Bxc6+ Qxc6 18. d5 Qb7 19. Rh5 O-O 20. Qh3 g6 21. Rxh7 Be5 22. dxe6 Qc6 23. exf7+ Rxf7 24. Rxf7 Kxf7 25. Qh7+ Kf6 26. Re1 Qd6 27. Bh6 Bxh2+ 28. Kh1 Bf4 29. Bg7+ Kg5 30. Qh6+ 1-0

[Event "CAT-chT Honor Division 2019"]
[Site "Catalonia"]
[Date "2019.02.16"]
[Round "5.8"]
[White "Colls Gelaberto, Emili"]
[Black "Garcia Ramos, Daniel"]
[Result "1/2-1/2"]
[ECO "E18"]
[WhiteElo "2115"]
[BlackElo "2282"]
[Annotator "NA"]
[PlyCount "113"]
[EventDate "2019.01.16"]
[EventType "team-tourn"]
[EventCountry "ESP"]
[SourceTitle "playchess.com"]
[Source "ChessBase"]
[SourceQuality "1"]
[WhiteTeam "Figueres"]
[BlackTeam "Colon Sabadell Chessy"]
[TimeControl "5400+30"]

1. d4 {[%emt 0:00:00]} Nf6 {[%emt 0:00:00]} 2. Nf3 {[%emt 0:00:13]} b6 {[%emt 0:00:00]} 3. g3 {[%emt 0:00:12]} Bb7 {[%emt 0:00:00]} 4. Bg2 {[%emt 0:00:11]} e6 {[%emt 0:00:02]} 5. O-O {[%emt 0:00:27]} Be7 {[%emt 0:00:05]} 6. c4 {[%emt 0:00:20]} O-O {[%emt 0:00:07]} 7. Nc3 {[%emt 0:00:34]} Ne4 {[%emt 0:00:11]} 8. Qc2 {[%emt 0:03:00]} Nxc3 9. Qxc3 {[%emt 0:00:12]} d6 {[%emt 0:02:38]} 10. b3 {[%emt 0:02:22]} a5 {[%emt 0:01:38]} 11. Bb2 {[%emt 0:02:08]} f5 {[%emt 0:04:59]} 12. a3 Bf6 {[%emt 0:08:15]} 13. Rfd1 {[%emt 0:16:21]} Qe7 {[%emt 0:01:08]} 14. Rd2 {[%emt 0:13:03]} Nd7 {[%emt 0:01:36]} 15. Rad1 {[%emt 0:01:02]} Rab8 {[%emt 0:22:46]} 16. Ne1 {[%emt 0:07:34]} Bxg2 {[%emt 0:19:03]} 17. Nxg2 {[%emt 0:00:44]} Nc5 {[%emt 0:01:43]} 18. Qc2 {[%emt 0:02:53]} Ne4 {[%emt 0:00:41]} 19. Rd3 {[%emt 0:00:18]} b5 {[%emt 0:02:06]} 20. f3 {[%emt 0:05:32]} bxc4 {[%emt 0:00:21]} 21. bxc4 {[%emt 0:00:14]} Nc5 {[%emt 0:01:58]} 22. R3d2 {[%emt 0:02:43]} Nb3 {[%emt 0:02:26]} 23. Rd3 {[%emt 0:00:17]} a4 {[%emt 0:00:48]} 24. Bc3 {[%emt 0:07:23]} Qf7 {[%emt 0:04:48]} 25. f4 {[%emt 0:04:35]} c5 {[%emt 0:02:22]} 26. dxc5 {[%emt 0:02:01]} Bxc3 {[%emt 0:00:21]} 27. Rxc3 {[%emt 0:01:17]} Qa7 {[%emt 0:00:58]} 28. Qd3 {[%emt 0:02:05]} Nxc5 {[%emt 0:05:51]} 29. Qe3 {[%emt 0:00:36]} Qc7 {[%emt 0:01:43]} 30. Qd4 {[%emt 0:01:45]} Ne4 {[%emt 0:02:15]} 31. Rcd3 {[%emt 0:02:05]} Qb7 {[%emt 0:00:43]} 32. Nh4 {[%emt 0:02:41]} Qb2 {[%emt 0:02:30]} 33. Kf1 {[%emt 0:01:56]} Qxd4 {[%emt 0:03:37]} 34. Rxd4 {[%emt 0:00:06]} Rb3 {[%emt 0:00:14]} 35. R4d3 {[%emt 0:00:49]} Rc8 {[%emt 0:01:03]} 36. Nf3 {[%emt 0:02:21]} Rxc4 {[%emt 0:00:39]} 37. Nd4 {[%emt 0:00:34]} Rxd3 {[%emt 0:00:38]} 38. Rxd3 {[%emt 0:00:08]} Kf7 {[%emt 0:00:34]} 39. Nb5 {[%emt 0:01:34]} Ke7 {[%emt 0:00:58]} 40. Rd4 {[%emt 0:00:15]} Rxd4 {[%emt 0:05:10]} 41. Nxd4 {[%emt 0:00:03]} Nd2+ {[%emt 0:00:09]} 42. Kf2 {[%emt 0:00:30]} Nc4 {[%emt 0:00:02]} 43. Nb5 {[%emt 0:00:26]} d5 {[%emt 0:01:36]} 44. Nc3 {[%emt 0:00:39]} Kd6 {[%emt 0:00:09]} 45. Nxa4 {[%emt 0:00:11]} d4 {[%emt 0:00:07]} 46. e3 {[%emt 0:01:03]} e5 {[%emt 0:03:01]} 47. fxe5+ {[%emt 0:00:50]} Kxe5 {[%emt 0:00:01]} 48. exd4+ {[%emt 0:00:14]} Kxd4 {[%emt 0:00:01]} 49. Kf3 {[%emt 0:00:21]} g5 {[%emt 0:00:08]} 50. h3 {[%emt 0:00:58]} h6 {[%emt 0:00:41]} 51. Ke2 {[%emt 0:00:17]} Nd6 {[%emt 0:02:05]} 52. Nb6 {[%emt 0:00:20]} g4 {[%emt 0:00:14]} 53. hxg4 fxg4 54. Kf2 {[%emt 0:00:32]} Nf5 {[%emt 0:01:10]} 55. a4 {[%emt 0:00:23]} Kc5 {[%emt 0:00:09]} 56. Nd7+ {[%emt 0:00:15]} Kb4 {[%emt 0:00:16]} 57. Nf6 {[%emt 0:00:10]} 1/2-1/2

[Event "CAT-chT Honor Division 2019"]
[Site "Catalonia"]
[Date "2019.02.16"]
[Round "5.9"]
[White "Ayas Fernandez, Antonio"]
[Black "Parals Marce, Luis"]
[Result "0-1"]
[ECO "B07"]
[WhiteElo "2253"]
[BlackElo "2025"]
[Annotator "NA"]
[PlyCount "106"]
[EventDate "2019.01.16"]
[EventType "team-tourn"]
[EventCountry "ESP"]
[SourceTitle "playchess.com"]
[Source "ChessBase"]
[SourceQuality "1"]
[WhiteTeam "Colon Sabadell Chessy"]
[BlackTeam "Figueres"]
[TimeControl "5400+30"]

1. e4 {[%emt 0:00:00]} d6 {[%emt 0:00:00]} 2. d4 {[%emt 0:00:00]} Nf6 {[%emt 0:00:03]} 3. Nc3 {[%emt 0:00:09]} c6 {[%emt 0:00:14]} 4. a4 {[%emt 0:12:51]} a5 {[%emt 0:07:27]} 5. Bg5 {[%emt 0:09:45]} Qb6 {[%emt 0:13:26]} 6. Qd3 {[%emt 0:08:55]} Na6 {[%emt 0:12:21]} 7. O-O-O {[%emt 0:03:16]} h6 {[%emt 0:07:25]} 8. Bxf6 {[%emt 0:13:31]} gxf6 {[%emt 0:04:46]} 9. Nge2 {[%emt 0:06:14]} Bd7 {[%emt 0:09:44]} 10. Ng3 {[%emt 0:04:28]} O-O-O {[%emt 0:04:21]} 11. Be2 {[%emt 0:02:03]} Kb8 {[%emt 0:10:43]} 12. Bh5 {[%emt 0:02:33]} Be8 {[%emt 0:01:53]} 13. f4 {[%emt 0:10:21]} e6 {[%emt 0:01:37]} 14. d5 {[%emt 0:05:34]} Nc5 {[%emt 0:09:02]} 15. Qf3 {[%emt 0:02:54]} cxd5 {[%emt 0:03:14]} 16. exd5 {[%emt 0:00:16]} f5 {[%emt 0:00:32]} 17. dxe6 {[%emt 0:06:02]} fxe6 {[%emt 0:00:26]} 18. Bxe8 {[%emt 0:00:13]} Rxe8 {[%emt 0:00:12]} 19. Nh5 {[%emt 0:00:18]} Rc8 {[%emt 0:02:13]} 20. Kb1 {[%emt 0:02:59]} Rh7 {[%emt 0:05:30]} 21. Rhe1 {[%emt 0:00:24]} Rhc7 {[%emt 0:00:57]} 22. Rxe6 {[%emt 0:05:12]} Nxe6 {[%emt 0:00:36]} 23. Nd5 {[%emt 0:00:06]} Qc6 {[%emt 0:00:33]} 24. Nxc7 {[%emt 0:00:19]} Qxf3 {[%emt 0:00:17]} 25. gxf3 {[%emt 0:00:36]} Rxc7 {[%emt 0:00:51]} 26. b3 {[%emt 0:00:13]} Kc8 {[%emt 0:01:29]} 27. c4 {[%emt 0:01:05]} Kd8 {[%emt 0:00:48]} 28. Kc2 {[%emt 0:01:22]} Ke8 {[%emt 0:00:07]} 29. Nf6+ {[%emt 0:01:05]} Kf7 {[%emt 0:00:13]} 30. Nd5 {[%emt 0:00:07]} Rc8 {[%emt 0:00:23]} 31. Nb6 {[%emt 0:00:23]} Re8 {[%emt 0:00:17]} 32. Rd5 {[%emt 0:00:08]} Kg6 {[%emt 0:00:27]} 33. Rxa5 {[%emt 0:00:28]} Nxf4 {[%emt 0:00:15]} 34. Rb5 {[%emt 0:00:23]} Re2+ {[%emt 0:00:36]} 35. Kd1 {[%emt 0:00:14]} Rxh2 {[%emt 0:00:09]} 36. Nd5 {[%emt 0:00:24]} Nxd5 {[%emt 0:00:16]} 37. cxd5 {[%emt 0:00:06]} h5 {[%emt 0:00:09]} 38. Rxb7 {[%emt 0:00:33]} h4 {[%emt 0:00:07]} 39. Ke1 {[%emt 0:00:22]} h3 {[%emt 0:00:13]} 40. Kf1 {[%emt 0:00:52]} Rd2 {[%emt 0:00:41]} 41. Kg1 {[%emt 0:00:15]} Bg7 {[%emt 0:00:19]} 42. f4 {[%emt 0:01:11]} Rg2+ {[%emt 0:01:37]} 43. Kh1 {[%emt 0:00:43]} Bd4 {[%emt 0:01:15]} 44. a5 {[%emt 0:00:17]} Ra2 {[%emt 0:00:27]} 45. b4 {[%emt 0:00:18]} Be3 {[%emt 0:00:12]} 46. Re7 {[%emt 0:00:40]} Bxf4 {[%emt 0:00:11]} 47. Re1 {[%emt 0:00:15]} Rb2 {[%emt 0:01:07]} 48. a6 {[%emt 0:00:15]} Rxb4 {[%emt 0:00:40]} 49. Ra1 {[%emt 0:00:06]} Rb8 {[%emt 0:00:23]} 50. a7 {[%emt 0:00:02]} Ra8 {[%emt 0:00:04]} 51. Ra3 {[%emt 0:00:19]} h2 {[%emt 0:00:07]} 52. Ra6 {[%emt 0:00:59]} Kf6 {[%emt 0:00:20]} 53. Ra3 {[%emt 0:02:12]} Be5 {[%emt 0:00:10]} 0-1

[Event "CAT-chT Honor Division 2019"]
[Site "Catalonia"]
[Date "2019.02.16"]
[Round "5.9"]
[White "Soto, Miguel Angel"]
[Black "Jimenez Ruano, Adrian"]
[Result "1-0"]
[ECO "B99"]
[WhiteElo "2198"]
[BlackElo "2287"]
[Annotator "NA"]
[PlyCount "51"]
[EventDate "2019.01.16"]
[EventType "team-tourn"]
[EventCountry "ESP"]
[SourceTitle "playchess.com"]
[Source "ChessBase"]
[SourceQuality "1"]
[WhiteTeam "Sant Josep Badalona"]
[BlackTeam "Barcelona"]
[TimeControl "5400+30"]

1. e4 c5 2. Nf3 d6 3. d4 cxd4 4. Nxd4 Nf6 5. Nc3 a6 6. Bg5 e6 7. f4 Be7 8. Qf3 h6 9. Bh4 Qc7 10. O-O-O Nbd7 11. Be2 b5 12. Bxf6 Nxf6 13. e5 Bb7 14. Qg3 dxe5 15. fxe5 Nd7 16. Nxe6 fxe6 17. Qg6+ Kd8 18. Qxe6 Bg5+ 19. Kb1 Re8 20. Qf5 Ke7 21. Rd6 Nc5 22. Bh5 Rf8 23. Qg6 Bf6 24. exf6+ Kxd6 25. fxg7+ Ke7 26. Re1+ 1-0

[Event "CAT-chT Honor Division 2019"]
[Site "Catalonia"]
[Date "2019.02.16"]
[Round "5.10"]
[White "Gomez Jurado, Luis Alberto"]
[Black "Barcelo Sola, David"]
[Result "1-0"]
[ECO "A29"]
[WhiteElo "2201"]
[BlackElo "1991"]
[Annotator "NA"]
[PlyCount "77"]
[EventDate "2019.01.16"]
[EventType "team-tourn"]
[EventCountry "ESP"]
[SourceTitle "playchess.com"]
[Source "ChessBase"]
[SourceQuality "1"]
[WhiteTeam "Barcelona"]
[BlackTeam "Sant Josep Badalona"]
[TimeControl "5400+30"]

1. Nf3 Nc6 2. c4 e5 3. Nc3 Nf6 4. g3 d5 5. cxd5 Nxd5 6. Bg2 Nb6 7. O-O Be7 8. a3 Be6 9. b4 O-O 10. Rb1 a6 11. d3 f5 12. Be3 Nd5 13. Nxd5 Bxd5 14. Bc5 Kh8 15. Bxe7 Qxe7 16. Rc1 Rad8 17. Rc5 Rd7 18. Qc1 Bxf3 19. Bxf3 Nd4 20. Qe3 Nxf3+ 21. exf3 f4 22. Qe4 Qd6 23. Rxe5 Qxd3 24. Re8 Qd6 25. Kg2 Rd8 26. Rxf8+ Rxf8 27. Qxb7 h5 28. Rc1 fxg3 29. hxg3 h4 30. Rh1 g5 31. Qe4 Rg8 32. Qg4 Rg6 33. Rc1 Kg7 34. Rc5 Kh6 35. Qc8 Rg7 36. Qe8 Kh7 37. Qh5+ Kg8 38. Rxg5 hxg3 39. Qe8+ 1-0